[Event "41st BAN National Women Chess-ch 2022"]
[Site "Dhaka"]
[Date "2022.11.25"]
[Round "8.3"]
[White "Warsia, Khusbu"]
[Black "Jannatul, Ferdous"]
[Result "1/2-1/2"]
[ECO "B12"]
[WhiteElo "1540"]
[BlackElo "1861"]
[Annotator "NA RC COMBH"]
[PlyCount "128"]
[EventDate "2022.11.17"]
[EventCountry "BAN"]
[SourceTitle "playchess.com"]
[Source "ChessBase"]
[SourceQuality "1"]
[TimeControl "40/5400+30:1800+30"]

{[%evp 8,128,7,16,23,21,8,0,21,5,0,4,-7,-8,13,-8,-2,-19,-25,-31,-16,-36,-20,-20,32767,-2,-10,-6,0,-103,-79,-474,-454,-694,-270,-246,-125,-148,-122,-170,-153,-194,-63,-133,-132,-176,-161,-161,-58,-42,29993,33,66,32767,32767,32767,32767,32767,32767,32767,32767,32767,32767,32767,32767,32767,32767,32767,32767,32767,32767,32767,32767,32767,32767,-311,32767,-619,-417,-554,-522,-562,32767,32767,32767,32767,32767,32767,32767,32767,32767,32767,32767,32767,32767,32767,32767,32767,32767,32767,32767,32767,32767,32767,32767,32767,0,-8,-8,0,32767,0,-8,-8,32767,32767,-8,-8,-8,-8,-8,-8,0]} 1. e4 {[%emt 0:00:02]} c6 {[%emt 0:00:24]} 2. d4 {[%emt 0:00:13]} d5 {[%emt 0:00:04]} 3. e5 {[%emt 0:00:05]} Bf5 {[%emt 0:00:06]} 4. Bd3 {[%emt 0:00:08]} Bxd3 {[%emt 0:00:06]} 5. Qxd3 {[%emt 0:00:05]} Qa5+ {[%emt 0:00:20]} 6. Nd2 {[%emt 0:00:14]} e6 {[%emt 0:00:06]} 7. h4 {[%emt 0:00:37]} h5 {[%emt 0:00:36]} 8. Ngf3 {[%emt 0:00:09]} Qa6 {[%emt 0:01:34]} 9. c4 {[%emt 0:00:18]} Nh6 {[%emt 0:06:36]} 10. O-O {[%emt 0:00:43]} Nf5 {[%emt 0:00:29]} 11. b3 {[%emt 0:00:53]} Be7 {[%emt 0:00:20]} 12. g3 {[%emt 0:01:31]} c5 {[%emt 0:05:22]} 13. dxc5 {[%emt 0:17:40]} Bxc5 {[%emt 0:00:24]} 14. Kg2 {[%emt 0:00:56]} Nc6 {[%emt 0:01:27]} 15. a3 {[%emt 0:02:06]} Rd8 {[%emt 0:04:35]} 16. Bb2 {[%emt 0:04:57]} dxc4 {[%emt 0:24:53]} 17. Qxc4 {[%emt 0:00:09]} Qb6 {[%emt 0:00:17]} 18. Ne4 {[%emt 0:03:56] [#]} (18. Qe2 $11 {keeps the balance.}) 18... Bxf2 $1 {[%emt 0:03:37]} 19. Nd6+ $2 {[%emt 0:05:32]} (19. Kh3 $17 {is more resistant.} Be3 20. Nd6+ Nxd6 21. exd6) 19... Rxd6 $1 {[%emt 0:03:11]} ({Less strong is} 19... Nxd6 20. exd6 Be3 21. Rad1 $11 (21. Bxg7 Rg8 $11)) 20. Bc1 {[%emt 0:07:15] [#]} (20. Qe2 $142 Ne3+ 21. Kxf2 Nxf1+ 22. Kxf1) 20... Rd7 {[%emt 0:06:56]} (20... Rd4 $142 $1 21. Nxd4 Bxd4) 21. Rxf2 {[%emt 0:00:59]} Ne3+ {[%emt 0:00:35]} ({Not} 21... Rd1 $2 22. Qc2 Rd5 23. Rb1) ({Black should try} 21... O-O $19 22. Bg5 Rd5) 22. Bxe3 {[%emt 0:00:13]} Qxe3 {[%emt 0:00:05]} 23. Re1 {[%emt 0:00:41]} Qd3 {[%emt 0:01:26]} 24. Qa4 {[%emt 0:02:30] [#]} Qg6 {[%emt 0:01:01]} (24... O-O $1 $19 25. Ree2 Rfd8) 25. Ng5 {[%emt 0:12:40]} (25. b4 $142) 25... O-O {[%emt 0:00:41]} 26. Re4 {[%emt 0:01:48]} Rfd8 {[%emt 0:03:35]} 27. Qc4 {[%emt 0:11:02]} Rd4 {[%emt 0:08:57]} (27... Rd2 $17 28. Ree2 R2d4) 28. Rxd4 {[%emt 0:01:39]} Rxd4 $15 {[%emt 0:00:24]} (28... Rd6 $2 {[%emt 0:26:47][%mdl 8192]}) 29. Qc5 {[%emt 0:03:06]} (29. Qe2 Nd8) 29... Rd5 {[%emt 0:04:57]} 30. Qc4 {[%emt 0:02:03]} Rxe5 {[%emt 0:17:41]} 31. Nxf7 {[%emt 0:03:46]} Rf5 {[%emt 0:00:34]} 32. Ng5 {[%emt 0:01:58]} Rxf2+ {[%emt 0:00:56]} 33. Kxf2 {[%emt 0:00:03]} Qf5+ {[%emt 0:00:47]} 34. Kg1 {[%emt 0:01:32]} Qd5 {[%emt 0:02:07]} 35. Nxe6 {[%emt 0:03:01]} Qxc4 {[%emt 0:00:02]} 36. bxc4 {[%emt 0:00:01]} Kf7 {[%emt 0:00:29]} 37. Nc5 {[%emt 0:01:22]} Na5 {[%emt 0:00:56]} 38. a4 {[%emt 0:02:12]} b6 {[%emt 0:00:32]} 39. Nd3 {[%emt 0:00:06]} Nxc4 {[%emt 0:00:17]} 40. Kf2 {[%emt 0:00:04]} Kf6 {[%emt 0:01:04]} 41. Nb4 {[%emt 0:31:35]} Kf5 {[%emt 0:31:04]} 42. Nc6 {[%emt 0:00:48]} a6 {[%emt 0:00:36]} 43. Nb4 {[%emt 0:01:11]} (43. Nd4+ $142 Kg4 44. Nc6) 43... a5 {[%emt 0:00:28]} 44. Nd5 {[%emt 0:00:30]} Ke4 {[%emt 0:00:00]} 45. Nf4 {[%emt 0:00:00]} Nb2 {[%emt 0:00:00]} 46. Nxh5 {[%emt 0:00:00]} g6 {[%emt 0:00:00]} 47. Nf4 {[%emt 0:00:00]} Kf5 {[%emt 0:00:00]} 48. Kf3 {[%emt 0:00:00]} Nxa4 {[%emt 0:00:00]} 49. g4+ {[%emt 0:00:00]} Kf6 {[%emt 0:00:00]} 50. Nd5+ {[%emt 0:00:00]} Kf7 {[%emt 0:00:00]} 51. Ke4 {[%emt 0:00:00]} b5 {[%emt 0:00:00]} 52. Kd4 {[%emt 0:00:00]} Nb2 {[%emt 0:00:00]} 53. Kc5 {[%emt 0:00:00]} b4 {[%emt 0:00:00]} 54. Kb5 {[%emt 0:00:00]} b3 {[%emt 0:00:00]} 55. Nc3 {[%emt 0:00:00]} a4 {[%emt 0:00:39]} 56. Kb4 {[%emt 0:00:00]} Ke6 $11 {[%emt 0:04:35]} 57. Ka3 {[%emt 0:00:00]} Nc4+ {[%emt 0:00:42]} 58. Kxa4 {[%emt 0:00:00]} b2 {[%emt 0:00:16]} 59. Kb3 {[%emt 0:00:00]} Ne5 {[%emt 0:00:17]} 60. Kxb2 {[%emt 0:00:00]} Nxg4 {[%emt 0:00:07]} 61. Ne4 {[%emt 0:00:00]} Kf5 {[%emt 0:01:04]} 62. Ng5 {[%emt 0:00:00]} Nh6 {[%emt 0:00:28]} 63. Nh7 {[%emt 0:00:00]} Kg4 {[%emt 0:00:35]} 64. Nf8 {[%emt 0:00:00]} Kf5 {[%emt 0:03:10]} 1/2-1/2

[Event "41st BAN National Women Chess-ch 2022"]
[Site "Dhaka"]
[Date "2022.11.25"]
[Round "8.4"]
[White "Sabiha, Marjana"]
[Black "Noshin, Anjum"]
[Result "0-1"]
[ECO "C44"]
[WhiteElo "1267"]
[BlackElo "1907"]
[Annotator "TA"]
[PlyCount "112"]
[EventDate "2022.11.17"]
[EventCountry "BAN"]
[SourceTitle "playchess.com"]
[Source "ChessBase"]
[SourceQuality "1"]
[TimeControl "40/5400+30:1800+30"]

{[%evp 9,112,0,0,0,4,7,8,0,0,0,4,0,0,0,-14,-29,-32,-47,-36,-38,12,-75,-68,-64,-71,-64,-60,-94,-98,-81,-56,-102,-85,-111,-71,-96,-93,-105,-116,-638,-628,-615,-594,-573,-396,-399,-402,-402,-389,-502,-502,-585,-590,-603,-589,-597,-554,-563,-559,-559,-547,-561,-545,-613,-587,-685,-668,-750,-748,-734,-730,-1007,-1016,-1010,-1008,-993,-989,-937,-945,-1064,-1129,-1809,-1719,-1450,-961,-1449,-1374,-1079,-994,-29973,-29970,-29984,-29985,-29985,-29986,-29987,-29988,-29992,-29991,-29993,-29994,-29994,-29995,-29995,-29996]} 1. e4 {[%emt 0:00:13]} e5 {[%emt 0:01:09]} 2. Nf3 {[%emt 0:00:22]} Nc6 {[%emt 0:00:06]} 3. d3 {[%emt 0:00:30]} Nf6 {[%emt 0:01:34]} 4. g3 {[%emt 0:00:41]} Bc5 {[%emt 0:02:04]} 5. Bg2 {[%emt 0:01:00]} d6 {[%emt 0:00:13]} 6. c3 {[%emt 0:02:19] C44: Ponziani Opening and Scotch Gambit.} a6 {[%emt 0:03:30]} 7. O-O {[%emt 0:01:31]} O-O {[%emt 0:01:35] [#]} 8. a3 $146 {[%emt 0:03:05] The position is equal.} ({Predecessor:} 8. Re1 Ba7 9. Na3 Ne7 10. Nc2 Ng6 11. h3 Re8 12. Be3 c6 13. Bxa7 Rxa7 14. Ne3 {0-1 (35) Topalov,V (2772)-Carlsen,M (2881) Flor/Fjaere 2014}) 8... Ba7 {[%emt 0:02:43]} 9. b4 {[%emt 0:04:02]} Bg4 {[%emt 0:02:46]} 10. Nbd2 {[%emt 0:01:24]} Qd7 {[%emt 0:01:54]} 11. Nc4 {[%emt 0:02:40]} Rfe8 {[%emt 0:04:43]} 12. Bg5 {[%emt 0:04:34]} (12. Ne3 {simplifies} Bxe3 13. Bxe3 d5 14. Qc2) 12... d5 {[%emt 0:01:26]} 13. Ncd2 {[%emt 0:11:09]} dxe4 {[%emt 0:08:03]} 14. dxe4 {[%emt 0:09:58]} Nh5 {[%emt 0:02:11]} (14... Re6 $15) 15. Qc2 {[%emt 0:02:34]} (15. Re1 $11 {remains equal.}) 15... h6 $17 {[%emt 0:02:14]} 16. Be3 {[%emt 0:00:49]} Bxe3 {[%emt 0:00:47]} 17. fxe3 {[%emt 0:00:29]} Rad8 {[%emt 0:00:50]} 18. Rfe1 {[%emt 0:05:56]} Qd3 {[%emt 0:05:53]} 19. Qxd3 {[%emt 0:02:09]} Rxd3 {[%emt 0:00:07]} 20. Rac1 {[%emt 0:00:26]} (20. Nb3 $15 {is superior.}) 20... Nf6 {[%emt 0:04:08]} 21. Rc2 {[%emt 0:02:54]} Red8 {[%emt 0:02:00] Black has more active pieces.} 22. Bf1 {[%emt 0:02:45]} R3d6 {[%emt 0:07:27]} 23. Be2 {[%emt 0:03:18]} Bxf3 {[%emt 0:00:32][%cal Bg4f3,Bf3e4,Be4c2][%mdl 32]} 24. Nc4 {[%emt 0:05:30][%mdl 8192] [#] This move loses the game for White.} (24. Nxf3 $17 Nxe4 25. c4) 24... Bxe4 {[%emt 0:02:55]} 25. Nxd6 {[%emt 0:06:26]} Bxc2 {[%emt 0:00:55]} 26. Nxb7 {[%emt 0:26:46]} Ra8 {[%emt 0:41:45] Strongly threatening ...e4.} 27. Nc5 {[%emt 0:00:00]} a5 {[%emt 0:00:00] Hoping for ...axb4.} 28. b5 {[%emt 0:00:00]} Ne7 {[%emt 0:00:00]} 29. a4 {[%emt 0:00:00]} Ned5 {[%emt 0:00:00][%csl LRc3,LRe3]} 30. Bf1 {[%emt 0:00:00]} Nb6 {[%emt 0:00:00]} (30... Nxc3 $2 {loses.} 31. Rc1 $19) 31. Ra1 {[%emt 0:00:00]} Rd8 {[%emt 0:00:00]} 32. Nb7 {[%emt 0:00:00]} Rd1 {[%emt 0:00:00]} 33. Rxd1 {[%emt 0:00:00]} Bxd1 {[%emt 0:00:00]} 34. Nxa5 {[%emt 0:00:00]} Nxa4 {[%emt 0:00:00]} 35. c4 {[%emt 0:00:00]} Nc5 {[%emt 0:00:00]} 36. h3 {[%emt 0:00:00]} Kf8 {[%emt 0:00:00]} 37. Kf2 {[%emt 0:00:00]} Nfe4+ {[%emt 0:00:00]} 38. Ke1 {[%emt 0:00:00]} Nxg3 {[%emt 0:00:00]} 39. Bg2 {[%emt 0:01:12]} Bc2 {[%emt 0:00:00]} 40. Kd2 {[%emt 0:00:44]} Be4 {[%emt 0:00:00]} 41. Bxe4 {[%emt 0:31:24]} Ngxe4+ {[%emt 0:03:14]} 42. Ke2 {[%emt 0:00:26]} g5 {[%emt 0:00:22]} 43. Nc6 {[%emt 0:00:12]} f6 {[%emt 0:00:44]} 44. Nb8 {[%emt 0:01:11]} Ke7 {[%emt 0:00:21]} 45. Na6 {[%emt 0:01:09]} Kd6 {[%emt 0:00:06] White must now prevent ...h5.} 46. Nb4 {[%emt 0:00:00]} h5 {[%emt 0:00:00][%cal Bh6h5,Bh5g4,Bg4g3,Bg3g2][%mdl 32] [#] aiming for ...f5.} 47. Nd5 {[%emt 0:00:00]} g4 {[%emt 0:00:00]} 48. hxg4 {[%emt 0:00:00]} hxg4 {[%emt 0:00:00]} 49. b6 {[%emt 0:00:00]} cxb6 {[%emt 0:00:00] Black mates.} 50. Nxb6 {[%emt 0:00:00]} g3 {[%emt 0:00:00]} 51. Kf3 {[%emt 0:00:00]} f5 {[%emt 0:00:00]} 52. Nd5 {[%emt 0:00:00]} Nd3 {[%emt 0:38:13]} 53. Nb6 {[%emt 0:00:00]} Ne1+ {[%emt 0:00:00]} 54. Ke2 {[%emt 0:00:00]} g2 {[%emt 0:00:00]} 55. c5+ {[%emt 0:00:00]} Kxc5 {[%emt 0:00:00]} 56. Na4+ {[%emt 0:00:00]} Kb4 {[%emt 0:00:00] Weighted Error Value: White=0.36/Black=0.12 (very precise)} 0-1

[Event "41st BAN National Women Chess-ch 2022"]
[Site "Dhaka"]
[Date "2022.11.25"]
[Round "8.5"]
[White "Wadifa, Ahmed"]
[Black "Tasnia Tarannum, Orpa"]
[Result "0-1"]
[ECO "B12"]
[WhiteElo "1656"]
[BlackElo "1662"]
[Annotator "NA RC COMBH"]
[PlyCount "102"]
[EventDate "2022.11.17"]
[EventCountry "BAN"]
[SourceTitle "playchess.com"]
[Source "ChessBase"]
[SourceQuality "1"]
[TimeControl "40/5400+30:1800+30"]

1. e4 {[%emt 0:00:03]} c6 {[%emt 0:00:23]} 2. d4 {[%emt 0:00:05]} d5 {[%emt 0:00:05]} 3. e5 {[%emt 0:00:03]} Bf5 {[%emt 0:00:19]} 4. Nf3 {[%emt 0:00:07]} e6 {[%emt 0:00:04]} 5. Be2 {[%emt 0:00:05]} Ne7 {[%emt 0:00:05]} 6. O-O {[%emt 0:00:06]} Bg6 {[%emt 0:00:09]} 7. Nbd2 {[%emt 0:01:00]} Nd7 {[%emt 0:00:06]} 8. Nb3 {[%emt 0:00:52]} c5 {[%emt 0:01:10]} 9. Nxc5 {[%emt 0:12:18]} Nxc5 {[%emt 0:01:27]} 10. dxc5 {[%emt 0:00:05]} Nc6 {[%emt 0:00:03]} 11. Be3 {[%emt 0:03:54]} Qa5 {[%emt 0:00:33]} 12. c3 {[%emt 0:03:21]} Be7 {[%emt 0:01:43]} 13. b4 {[%emt 0:04:00]} Qc7 {[%emt 0:00:05]} 14. Bd4 {[%emt 0:01:07]} Bh5 {[%emt 0:01:05]} 15. Re1 {[%emt 0:01:15]} O-O {[%emt 0:01:11]} 16. a4 {[%emt 0:06:54]} a5 {[%emt 0:02:58]} 17. Qd2 {[%emt 0:05:00]} h6 {[%emt 0:05:30]} 18. Qb2 {[%emt 0:12:07]} Rac8 {[%emt 0:03:01]} 19. Nd2 {[%emt 0:05:33]} Bg6 {[%emt 0:02:53]} 20. Bf1 {[%emt 0:01:48]} Bg5 {[%emt 0:02:54]} 21. b5 {[%emt 0:00:31]} Nb8 {[%emt 0:01:34]} 22. Nb3 {[%emt 0:01:11]} Qd8 {[%emt 0:00:42]} 23. b6 {[%emt 0:03:15]} Nc6 {[%emt 1:14:00]} 24. Bb5 {[%emt 0:00:04]} Ra8 {[%emt 0:00:00]} 25. Rad1 {[%emt 0:04:49]} Qc8 {[%emt 0:00:00]} 26. c4 {[%emt 0:02:21]} dxc4 {[%emt 0:00:00]} 27. Bxc4 {[%emt 0:00:36]} Rd8 {[%emt 0:00:00]} 28. Bc3 {[%emt 0:00:43]} Be7 {[%emt 0:00:00]} 29. Bb5 {[%emt 0:02:15]} Rxd1 {[%emt 0:00:00]} 30. Rxd1 {[%emt 0:00:27]} Be4 {[%emt 0:00:00]} 31. Bc4 {[%emt 0:12:46]} Nd8 {[%emt 0:00:00]} 32. Qe2 {[%emt 0:02:56]} Bg6 {[%emt 0:00:00]} 33. Bd4 {[%emt 0:04:43]} Nc6 {[%emt 0:00:00]} 34. Qd2 {[%emt 0:00:19]} Nxd4 {[%emt 0:05:30]} 35. Qxd4 {[%emt 0:00:12]} Bc2 {[%emt 0:00:00]} 36. Rc1 {[%emt 0:00:17]} Bxb3 {[%emt 0:00:00]} 37. Bxb3 {[%emt 0:00:05]} Qc6 {[%emt 0:00:00]} 38. h3 {[%emt 0:07:18]} Rc8 {[%emt 0:00:00]} 39. Bd1 {[%emt 0:01:55]} Bxc5 {[%emt 0:00:00]} 40. Qb2 {[%emt 0:00:03]} Bxf2+ {[%emt 0:00:00]} 41. Kxf2 {[%emt 0:31:54]} Qxc1 {[%emt 0:00:00]} 42. Qxc1 {[%emt 0:00:08]} Rxc1 {[%emt 0:00:00]} 43. Bf3 {[%emt 0:00:38]} Rb1 {[%emt 0:00:00]} 44. Bxb7 {[%emt 0:00:04]} Rxb6 {[%emt 0:00:00]} 45. Bc8 {[%emt 0:00:08]} Rb4 {[%emt 0:00:00]} 46. Bd7 {[%emt 0:00:05]} Re4 {[%emt 0:00:00]} 47. Kf3 {[%emt 0:00:41]} Rxe5 {[%emt 0:00:00]} 48. Kf4 {[%emt 0:00:05]} Rd5 {[%emt 0:00:00]} 49. Bb5 {[%emt 0:00:09]} Kf8 {[%emt 0:00:00]} 50. Ke3 {[%emt 0:00:21]} Ke7 {[%emt 0:00:00]} 51. Bc4 {[%emt 0:00:12]} Kd6 {[%emt 0:38:30]} 0-1

[Event "41st BAN National Women Chess-ch 2022"]
[Site "Dhaka"]
[Date "2022.11.25"]
[Round "8.6"]
[White "Talukder, Umme Taslima Protiva"]
[Black "Nusrat Jahan, Alo"]
[Result "0-1"]
[ECO "D02"]
[WhiteElo "1780"]
[BlackElo "1710"]
[Annotator "NA RC COMBH"]
[PlyCount "130"]
[EventDate "2022.11.17"]
[EventCountry "BAN"]
[SourceTitle "playchess.com"]
[Source "ChessBase"]
[SourceQuality "1"]
[TimeControl "40/5400+30:1800+30"]

1. d4 {[%emt 0:00:10]} d5 {[%emt 0:00:06]} 2. Bf4 {[%emt 0:00:13]} Nf6 {[%emt 0:00:13]} 3. e3 {[%emt 0:00:11]} e6 {[%emt 0:00:19]} 4. Nf3 {[%emt 0:00:23]} Bd6 {[%emt 0:00:14]} 5. Bg3 {[%emt 0:00:19]} O-O {[%emt 0:00:39]} 6. Bd3 {[%emt 0:00:56]} c5 {[%emt 0:00:17]} 7. c3 {[%emt 0:00:17]} Qc7 {[%emt 0:00:33]} 8. Nbd2 {[%emt 0:03:06]} Nbd7 {[%emt 0:01:10]} 9. O-O {[%emt 0:02:25]} b6 {[%emt 0:02:47]} 10. e4 {[%emt 0:06:41]} Bxg3 {[%emt 0:09:10]} 11. hxg3 {[%emt 0:00:41]} dxe4 {[%emt 0:03:19]} 12. Nxe4 {[%emt 0:01:16]} Bb7 {[%emt 0:03:49]} 13. Qe2 {[%emt 0:07:40]} Rfd8 {[%emt 0:13:53]} 14. Rfd1 {[%emt 0:11:15]} Qc6 {[%emt 0:08:47]} 15. Nxf6+ {[%emt 0:04:51]} Nxf6 {[%emt 0:01:35]} 16. Bb5 {[%emt 0:06:06]} Qd5 {[%emt 0:09:06]} 17. dxc5 {[%emt 0:14:18]} Qxc5 {[%emt 0:03:17]} 18. Ba6 {[%emt 0:38:42]} Bxa6 {[%emt 0:12:52]} 19. Qxa6 {[%emt 0:00:00]} Ne4 {[%emt 0:00:11]} 20. Nd4 {[%emt 0:00:00]} e5 {[%emt 0:05:12]} 21. Qe2 {[%emt 0:00:00]} Nxc3 {[%emt 0:03:05]} 22. bxc3 {[%emt 0:00:00]} exd4 {[%emt 0:00:37]} 23. cxd4 {[%emt 0:00:00]} Rxd4 {[%emt 0:01:44]} 24. Rdc1 {[%emt 0:00:00]} Qd6 {[%emt 0:07:07]} 25. Qf3 {[%emt 0:03:30]} Re8 {[%emt 0:12:58]} 26. Rc6 {[%emt 0:00:00]} Qe7 {[%emt 0:00:00]} 27. Rac1 {[%emt 0:00:00]} Rd7 {[%emt 0:00:00]} 28. Qf4 {[%emt 0:00:00]} h6 {[%emt 0:00:00]} 29. Rc7 {[%emt 0:00:00]} f6 {[%emt 0:00:00]} 30. Qc4+ {[%emt 0:00:00]} Kh8 {[%emt 0:00:00]} 31. Rc8 {[%emt 0:00:00]} Rxc8 {[%emt 0:00:00]} 32. Qxc8+ {[%emt 0:00:00]} Qd8 {[%emt 0:00:00]} 33. Qxd8+ {[%emt 0:00:43]} Rxd8 {[%emt 0:00:00]} 34. Rc7 {[%emt 0:00:52]} Rd1+ {[%emt 0:00:12]} 35. Kh2 {[%emt 0:00:01]} a5 {[%emt 0:00:47]} 36. Rc2 {[%emt 0:00:33]} b5 {[%emt 0:01:30]} 37. g4 {[%emt 0:00:27]} Kg8 {[%emt 0:00:11]} 38. Kg3 {[%emt 0:00:35]} Kf7 {[%emt 0:00:39]} 39. Rc5 {[%emt 0:01:15]} Rb1 {[%emt 0:00:13]} 40. Rc7+ {[%emt 0:00:18]} Ke6 {[%emt 0:02:21]} 41. Rxg7 {[%emt 0:30:13]} Rb2 {[%emt 0:30:04]} 42. Rg6 {[%emt 0:02:48]} Rxa2 {[%emt 0:00:39]} 43. Rxh6 {[%emt 0:00:14]} Kf7 {[%emt 0:00:01]} 44. Rh5 {[%emt 0:00:00]} Rb2 {[%emt 0:00:00]} 45. Rh7+ {[%emt 0:00:00]} Kg6 {[%emt 0:00:00]} 46. Ra7 {[%emt 0:00:00]} a4 {[%emt 0:00:00]} 47. f4 {[%emt 0:00:00]} Ra2 {[%emt 0:00:00]} 48. Rb7 {[%emt 0:00:00]} Rb2 {[%emt 0:00:00]} 49. Ra7 {[%emt 0:00:00]} Rb3+ {[%emt 0:00:00]} 50. Kh4 {[%emt 0:00:00]} a3 {[%emt 0:00:00]} 51. f5+ {[%emt 0:00:00]} Kh6 {[%emt 0:00:00]} 52. Rf7 {[%emt 0:00:00]} Rb4 {[%emt 0:00:00]} 53. Rxf6+ {[%emt 0:00:00]} Kg7 {[%emt 0:00:00]} 54. Rg6+ {[%emt 0:00:00]} Kf7 {[%emt 0:00:00]} 55. Ra6 {[%emt 0:00:00]} Ra4 {[%emt 0:00:00]} 56. Rb6 {[%emt 0:00:00]} a2 {[%emt 0:00:00]} 57. Rb7+ {[%emt 0:00:00]} Ke8 {[%emt 0:00:00]} 58. Rb8+ {[%emt 0:00:00]} Kd7 {[%emt 0:00:00]} 59. f6 {[%emt 0:00:00]} a1=Q {[%emt 0:00:00]} 60. f7 {[%emt 0:00:00]} Qf6+ {[%emt 0:00:00]} 61. Kh3 {[%emt 0:00:00]} Qh6+ {[%emt 0:00:00]} 62. Kg3 {[%emt 0:00:00]} Qf4+ {[%emt 0:00:00]} 63. Kh3 {[%emt 0:00:00]} Qxg4+ {[%emt 0:00:00]} 64. Kh2 {[%emt 0:00:00]} Qh4+ {[%emt 0:00:00]} 65. Kg1 {[%emt 0:00:00]} Ra1# {[%emt 0:00:00]} 0-1